[Event "9e Open International de Porticcio"]
[Site "Porticcio, France"]
[Date "2024.07.02"]
[Round "5.7"]
[White "Nayak Rajesh"]
[Black "Terrieux, Kevin"]
[Result "1-0"]
[TimeControl "1h30+30s/move"]
[WhiteElo "2185"]
[BlackElo "2408"]

1. e4 {[%clk 01:30:56]} {[%emt 00:00:03]} c5 {[%clk 01:28:39]} {[%emt
00:02:21]} 2. Nf3 {[%clk 01:31:13]} {[%emt 00:00:13]} d6 {[%clk 01:28:38]}
{[%emt 00:00:31]} 3. d4 {[%clk 01:31:04]} {[%emt 00:00:39]} cxd4 {[%clk
01:28:50]} {[%emt 00:00:19]} 4. Nxd4 {[%clk 01:31:24]} {[%emt 00:00:09]} Nf6
{[%clk 01:29:10]} {[%emt 00:00:11]} 5. Nc3 {[%clk 01:31:45]} {[%emt 00:00:08]}
Nc6 {[%clk 01:29:29]} {[%emt 00:00:11]} 6. Bg5 {[%clk 01:31:53]} {[%emt
00:00:20]} e6 {[%clk 01:29:24]} {[%emt 00:00:37]} 7. Qd2 {[%clk 01:32:04]}
{[%emt 00:00:18]} Qb6 {[%clk 01:28:12]} {[%emt 00:01:43]} 8. Nb3 {[%clk
01:24:09]} {[%emt 00:08:25]} a6 {[%clk 01:27:34]} {[%emt 00:01:08]} 9. O-O-O
{[%clk 01:24:13]} {[%emt 00:00:25]} Qc7 {[%clk 01:27:00]} {[%emt 00:01:04]} 10.
f4 {[%clk 01:11:30]} {[%emt 00:13:12]} b5 {[%clk 01:22:41]} {[%emt 00:04:50]}
11. e5 {[%clk 00:59:10]} {[%emt 00:12:49]} dxe5 {[%clk 01:14:03]} {[%emt
00:09:10]} 12. fxe5 {[%clk 00:59:18]} {[%emt 00:00:22]} Nd7 {[%clk 01:10:10]}
{[%emt 00:04:23]} 13. Ne4 {[%clk 00:44:04]} {[%emt 00:15:43]} Ncxe5 {[%clk
01:05:36]} {[%emt 00:05:05]} 14. Nd4 {[%clk 00:34:30]} {[%emt 00:10:03]} Bb7
{[%clk 01:03:59]} {[%emt 00:02:09]} 15. Qe2 {[%clk 00:31:07]} {[%emt 00:03:51]}
Rc8 {[%clk 00:38:24]} {[%emt 00:26:07]} 16. Kb1 {[%clk 00:29:56]} {[%emt
00:01:40]} Nc4 {[%clk 00:37:13]} {[%emt 00:01:41]} 17. g3 {[%clk 00:15:27]}
{[%emt 00:14:58]} Bxe4 {[%clk 00:08:44]} {[%emt 00:29:01]} 18. Qxe4 {[%clk
00:15:38]} {[%emt 00:00:17]} Nc5 {[%clk 00:09:02]} {[%emt 00:00:13]} 19. Qf3
{[%clk 00:08:56]} {[%emt 00:07:10]} Bd6 {[%clk 00:08:40]} {[%emt 00:00:55]} 20.
Bxc4 {[%clk 00:07:04]} {[%emt 00:02:21]} bxc4 {[%clk 00:09:02]} {[%emt
00:00:08]} 21. Qe2 {[%clk 00:07:23]} {[%emt 00:00:10]} c3 {[%clk 00:07:44]}
{[%emt 00:01:49]} 22. Nf5 {[%clk 00:07:32]} {[%emt 00:00:21]} Be5 {[%clk
00:07:13]} {[%emt 00:01:01]} 23. Be7 {[%clk 00:06:16]} {[%emt 00:01:46]} Qb7
{[%clk 00:05:03]} {[%emt 00:02:40]} 24. b3 {[%clk 00:05:28]} {[%emt 00:01:18]}
exf5 {[%clk 00:05:20]} {[%emt 00:00:13]} 25. Qxe5 {[%clk 00:05:27]} {[%emt
00:00:31]} Qxe7 {[%clk 00:05:26]} {[%emt 00:00:24]} 26. Qxg7 {[%clk 00:05:49]}
{[%emt 00:00:08]} Rf8 {[%clk 00:05:21]} {[%emt 00:00:35]} 27. Qxc3 {[%clk
00:06:13]} {[%emt 00:00:06]} Qe6 {[%clk 00:04:01]} {[%emt 00:01:51]} 28. Rhe1
{[%clk 00:03:27]} {[%emt 00:03:15]} Ne4 {[%clk 00:04:29]} {[%emt 00:00:02]} 29.
Qb4 {[%clk 00:03:49]} {[%emt 00:00:05]} Rg8 {[%clk 00:03:13]} {[%emt 00:01:49]}
30. c4 {[%clk 00:03:13]} {[%emt 00:01:06]} Qe7 {[%clk 00:01:41]} {[%emt
00:02:02]} 31. Qa5 {[%clk 00:02:49]} {[%emt 00:00:54]} Rc5 {[%clk 00:00:59]}
{[%emt 00:01:13]} 32. Qxa6 {[%clk 00:03:03]} {[%emt 00:00:16]} Kf8 {[%clk
00:01:19]} {[%emt 00:00:11]} 33. Qh6+ {[%clk 00:02:48]} {[%emt 00:00:44]} Rg7
{[%clk 00:01:44]} {[%emt 00:00:05]} 34. g4 {[%clk 00:01:15]} {[%emt 00:02:02]}
Re5 {[%clk 00:01:48]} {[%emt 00:00:26]} 35. gxf5 {[%clk 00:01:02]} {[%emt
00:00:43]} f6 {[%clk 00:01:54]} {[%emt 00:00:25]} 36. Kc2 {[%clk 00:00:40]}
{[%emt 00:00:52]} Nd6 {[%clk 00:00:43]} {[%emt 00:01:41]} 37. Rxe5 {[%clk
00:00:36]} {[%emt 00:00:34]} Qxe5 {[%clk 00:01:12]} {[%emt 00:00:01]} 38. Rd5
{[%clk 00:00:44]} {[%emt 00:00:22]} Nxf5 {[%clk 00:00:58]} {[%emt 00:00:44]} 39.
Rxe5 {[%emt 00:00:43]} Nxh6 {[%clk 00:01:19]} {[%emt 00:00:08]} 40. Rh5 {[%clk
00:00:57]} {[%emt 00:00:04]} Ng4 {[%clk 00:01:30]} {[%emt 00:00:19]} 41. a4
{[%clk 00:01:21]} {[%emt 00:00:07]} Ke7 {[%clk 00:00:34]} {[%emt 00:01:25]} 42.
a5 {[%clk 00:01:26]} {[%emt 00:00:26]} Kd6 {[%clk 00:00:40]} {[%emt 00:00:23]}
43. Rd5+ {[%clk 00:01:25]} {[%emt 00:00:30]} Kc7 {[%clk 00:00:57]} {[%emt
00:00:12]} 44. Kc3 {[%clk 00:01:47]} {[%emt 00:00:08]} Ne5 {[%clk 00:01:24]}
{[%emt 00:00:05]} 45. Rd4 {[%clk 00:01:28]} {[%emt 00:00:48]} Nc6 {[%clk
00:00:46]} {[%emt 00:01:08]} 46. Rf4 {[%clk 00:01:42]} {[%emt 00:00:15]} Nxa5
{[%clk 00:00:38]} {[%emt 00:00:40]} 47. Rxf6 {[%clk 00:02:07]} {[%emt
00:00:04]} Nc6 {[%clk 00:00:47]} {[%emt 00:00:21]} 48. b4 {[%clk 00:01:57]}
{[%emt 00:00:40]} Re7 {[%clk 00:01:13]} {[%emt 00:00:04]} 49. b5 {[%clk
00:02:15]} {[%emt 00:00:12]} Ne5 {[%clk 00:01:22]} {[%emt 00:00:22]} 50. h3
{[%clk 00:02:10]} {[%emt 00:00:34]} Nd7 {[%clk 00:01:42]} {[%emt 00:00:10]} 51.
Rh6 {[%clk 00:02:29]} {[%emt 00:00:10]} Kb7 {[%clk 00:01:54]} {[%emt 00:00:18]}
52. Kb4 {[%clk 00:02:18]} {[%emt 00:00:37]} Nb6 {[%clk 00:00:46]} {[%emt
00:01:43]} 53. c5 {[%clk 00:02:17]} {[%emt 00:00:30]} Re4+ {[%clk 00:00:57]}
{[%emt 00:00:19]} 1-0

[Event "9e Open International de Porticcio"]
[Site "Porticcio, France"]
[Date "2024.07.02"]
[Round "5.8"]
[White "Bulmaga, Irina"]
[Black "Ha, Yihan"]
[Result "1-0"]
[TimeControl "1h30+30s/move"]
[WhiteElo "2391"]
[BlackElo "2166"]

1. e4 {[%clk 01:28:33]} {[%emt 00:02:26]} c6 {[%clk 01:30:55]} {[%emt
00:00:07]} 2. d4 {[%clk 01:28:38]} {[%emt 00:00:25]} d5 {[%clk 01:31:16]}
{[%emt 00:00:09]} 3. e5 {[%clk 01:29:01]} {[%emt 00:00:06]} Bf5 {[%clk
01:31:32]} {[%emt 00:00:14]} 4. Nf3 {[%clk 01:29:24]} {[%emt 00:00:07]} e6
{[%clk 01:31:54]} {[%emt 00:00:08]} 5. Be2 {[%clk 01:29:47]} {[%emt 00:00:06]}
c5 {[%clk 01:31:14]} {[%emt 00:01:11]} 6. Be3 {[%clk 01:29:24]} {[%emt
00:00:53]} cxd4 {[%clk 01:30:48]} {[%emt 00:00:56]} 7. Nxd4 {[%clk 01:29:46]}
{[%emt 00:00:08]} Ne7 {[%clk 01:30:47]} {[%emt 00:00:31]} 8. O-O {[%clk
01:29:34]} {[%emt 00:00:42]} Nbc6 {[%clk 01:29:46]} {[%emt 00:01:30]} 9. Bb5
{[%clk 01:29:16]} {[%emt 00:00:48]} Qb8 {[%clk 01:22:57]} {[%emt 00:07:18]} 10.
c4 {[%clk 01:21:11]} {[%emt 00:08:36]} Qxe5 {[%clk 01:04:09]} {[%emt 00:19:17]}
11. Qa4 {[%clk 01:09:40]} {[%emt 00:12:02]} Qc7 {[%clk 00:55:31]} {[%emt
00:09:08]} 12. Rc1 {[%clk 00:37:52]} {[%emt 00:32:19]} dxc4 {[%clk 00:52:25]}
{[%emt 00:03:35]} 13. Nd2 {[%clk 00:33:18]} {[%emt 00:05:04]} Bd3 {[%clk
00:40:59]} {[%emt 00:11:55]} 14. Nxc4 {[%clk 00:32:32]} {[%emt 00:01:17]} Rc8
{[%clk 00:38:53]} {[%emt 00:02:33]} 15. Qxa7 {[%clk 00:25:30]} {[%emt
00:07:35]} Nd5 {[%clk 00:37:35]} {[%emt 00:01:46]} 16. Nxc6 {[%clk 00:23:52]}
{[%emt 00:02:09]} bxc6 {[%clk 00:37:43]} {[%emt 00:00:22]} 17. Bxc6+ {[%clk
00:22:10]} {[%emt 00:02:12]} Ke7 {[%clk 00:22:21]} {[%emt 00:15:52]} 18. Qa3+
{[%clk 00:21:34]} {[%emt 00:01:07]} Kd8 {[%clk 00:20:13]} {[%emt 00:02:38]} 19.
Qxd3 {[%clk 00:21:38]} {[%emt 00:00:25]} Qxc6 {[%clk 00:19:17]} {[%emt
00:01:26]} 20. Nb6 {[%clk 00:21:41]} {[%emt 00:00:28]} 1-0

[Event "9e Open International de Porticcio"]
[Site "Porticcio, France"]
[Date "2024.07.02"]
[Round "5.10"]
[White "Vuitton, Gilles"]
[Black "Don Ignazi, Pierre Ange"]
[Result "1/2-1/2"]
[TimeControl "1h30+30s/move"]
[WhiteElo "1980"]
[BlackElo "1870"]

1. Nf3 {[%clk 01:30:43]} {[%emt 00:00:15]} Nf6 {[%clk 01:27:02]} {[%emt
00:03:59]} 2. c4 {[%clk 01:30:03]} {[%emt 00:01:10]} g6 {[%clk 01:27:04]}
{[%emt 00:00:29]} 3. Nc3 {[%clk 01:24:15]} {[%emt 00:06:18]} Bg7 {[%clk
01:26:41]} {[%emt 00:00:53]} 4. e4 {[%clk 01:24:06]} {[%emt 00:00:38]} d6
{[%clk 01:27:05]} {[%emt 00:00:07]} 5. d4 {[%clk 01:24:31]} {[%emt 00:00:05]}
O-O {[%clk 01:27:26]} {[%emt 00:00:09]} 6. Be2 {[%clk 01:24:47]} {[%emt
00:00:14]} e5 {[%clk 01:27:49]} {[%emt 00:00:07]} 7. d5 {[%clk 01:25:01]}
{[%emt 00:00:15]} Nbd7 {[%clk 01:27:16]} {[%emt 00:01:03]} 8. Bg5 {[%clk
01:23:31]} {[%emt 00:02:00]} a5 {[%clk 01:26:55]} {[%emt 00:00:53]} 9. Nd2
{[%clk 01:13:33]} {[%emt 00:10:27]} Nc5 {[%clk 01:22:57]} {[%emt 00:04:28]} 10.
h4 {[%clk 01:09:21]} {[%emt 00:04:41]} h6 {[%clk 01:16:05]} {[%emt 00:07:24]}
11. Be3 {[%clk 01:08:39]} {[%emt 00:01:10]} Qe7 {[%clk 01:01:05]} {[%emt
00:15:30]} 12. h5 {[%clk 00:42:14]} {[%emt 00:26:55]} g5 {[%clk 01:01:02]}
{[%emt 00:00:34]} 13. g4 {[%clk 00:39:50]} {[%emt 00:02:52]} c6 {[%clk
00:59:41]} {[%emt 00:01:52]} 14. f3 {[%clk 00:39:46]} {[%emt 00:00:34]} Bd7
{[%clk 00:58:28]} {[%emt 00:01:45]} 15. Nf1 {[%clk 00:39:56]} {[%emt 00:00:18]}
Rfd8 {[%clk 00:29:05]} {[%emt 00:29:53]} 16. Ng3 {[%clk 00:39:24]} {[%emt
00:01:02]} Ne8 {[%clk 00:26:12]} {[%emt 00:03:23]} 17. O-O {[%clk 00:34:39]}
{[%emt 00:05:14]} Qf8 {[%clk 00:24:44]} {[%emt 00:01:59]} 18. b3 {[%clk
00:24:58]} {[%emt 00:10:10]} Bf6 {[%clk 00:19:58]} {[%emt 00:05:17]} 19. Qd2
{[%clk 00:22:54]} {[%emt 00:02:33]} Be7 {[%clk 00:20:15]} {[%emt 00:00:15]} 20.
Rac1 {[%clk 00:18:45]} {[%emt 00:04:39]} Nc7 {[%clk 00:20:04]} {[%emt
00:00:41]} 21. Nf5 {[%clk 00:17:04]} {[%emt 00:02:11]} Bxf5 {[%clk 00:20:12]}
{[%emt 00:00:22]} 22. gxf5 {[%clk 00:16:47]} {[%emt 00:00:47]} f6 {[%clk
00:20:15]} {[%emt 00:00:27]} 23. Kf2 {[%clk 00:16:50]} {[%emt 00:00:27]} Kh7
{[%clk 00:20:36]} {[%emt 00:00:10]} 24. Rh1 {[%clk 00:16:15]} {[%emt 00:01:06]}
Qf7 {[%clk 00:20:21]} {[%emt 00:00:45]} 25. Na4 {[%clk 00:15:03]} {[%emt
00:01:42]} Ne8 {[%clk 00:10:18]} {[%emt 00:10:33]} 26. Rh2 {[%clk 00:14:43]}
{[%emt 00:00:50]} Nc7 {[%clk 00:07:56]} {[%emt 00:02:52]} 27. Nc3 {[%clk
00:13:40]} {[%emt 00:01:32]} N7a6 {[%clk 00:07:23]} {[%emt 00:01:03]} 28. Rb1
{[%clk 00:10:29]} {[%emt 00:03:41]} Nc7 {[%clk 00:06:16]} {[%emt 00:01:38]} 29.
Kg3 {[%clk 00:10:32]} {[%emt 00:00:27]} Qe8 {[%clk 00:06:00]} {[%emt 00:00:46]}
30. Kg4 {[%clk 00:10:44]} {[%emt 00:00:18]} Qf7 {[%clk 00:03:11]} {[%emt
00:03:20]} 31. Qd1 {[%clk 00:06:37]} {[%emt 00:04:35]} Ne8 {[%clk 00:03:33]}
{[%emt 00:00:08]} 32. a3 {[%clk 00:06:29]} {[%emt 00:00:38]} Bf8 {[%clk
00:02:53]} {[%emt 00:01:10]} 33. b4 {[%clk 00:05:53]} {[%emt 00:01:06]} axb4
{[%clk 00:03:21]} {[%emt 00:00:03]} 34. axb4 {[%clk 00:06:16]} {[%emt
00:00:07]} Nd7 {[%clk 00:03:00]} {[%emt 00:00:50]} 35. Ra1 {[%clk 00:05:16]}
{[%emt 00:01:31]} c5 {[%clk 00:02:18]} {[%emt 00:01:12]} 36. b5 {[%clk
00:05:04]} {[%emt 00:00:42]} Nb6 {[%clk 00:02:29]} {[%emt 00:00:19]} 37. Bd3
{[%clk 00:04:32]} {[%emt 00:01:01]} Ng7 {[%clk 00:01:39]} {[%emt 00:01:21]} 38.
Na4 {[%clk 00:04:24]} {[%emt 00:00:38]} Qc7 {[%clk 00:02:00]} {[%emt 00:00:09]}
39. Rha2 {[%clk 00:04:37]} {[%emt 00:00:17]} Nd7 {[%clk 00:01:06]} {[%emt
00:01:24]} 40. Qb3 {[%clk 00:03:36]} {[%emt 00:01:30]} b6 {[%clk 00:00:39]}
{[%emt 00:00:57]} 41. Nc3 {[%clk 00:03:17]} {[%emt 00:00:49]} Qb7 {[%clk
00:01:07]} {[%emt 00:00:02]} 42. Ra6 {[%clk 00:03:16]} {[%emt 00:00:30]} Ne8
{[%clk 00:01:08]} {[%emt 00:00:30]} 43. Qa2 {[%clk 00:03:04]} {[%emt 00:00:41]}
Nc7 {[%clk 00:01:10]} {[%emt 00:00:28]} 44. Ra7 {[%clk 00:03:05]} {[%emt
00:00:29]} Rxa7 {[%clk 00:01:39]} {[%emt 00:00:02]} 45. Qxa7 {[%clk 00:03:24]}
{[%emt 00:00:11]} Rb8 {[%clk 00:02:08]} {[%emt 00:00:01]} 46. Qxb7 {[%clk
00:03:22]} {[%emt 00:00:32]} Rxb7 {[%clk 00:02:37]} {[%emt 00:00:01]} 47. Ne2
{[%clk 00:03:21]} {[%emt 00:00:31]} Be7 {[%clk 00:02:51]} {[%emt 00:00:16]} 48.
Kh3 {[%clk 00:03:32]} {[%emt 00:00:18]} Kg7 {[%clk 00:02:55]} {[%emt 00:00:26]}
49. Kg2 {[%clk 00:03:57]} {[%emt 00:00:06]} Kf7 {[%clk 00:03:22]} {[%emt
00:00:03]} 50. Kf2 {[%clk 00:04:06]} {[%emt 00:00:20]} Ke8 {[%clk 00:03:51]}
{[%emt 00:00:02]} 51. Ke1 {[%clk 00:04:23]} {[%emt 00:00:13]} Kd8 {[%clk
00:04:03]} {[%emt 00:00:18]} 52. Kf2 {[%clk 00:04:33]} {[%emt 00:00:20]} Kc8
{[%clk 00:04:31]} {[%emt 00:00:01]} 53. Ng1 {[%clk 00:04:44]} {[%emt 00:00:19]}
Ne8 {[%clk 00:04:39]} {[%emt 00:00:23]} 54. Ra8+ {[%clk 00:04:56]} {[%emt
00:00:17]} Nb8 {[%clk 00:03:58]} {[%emt 00:01:11]} 55. Ne2 {[%clk 00:05:19]}
{[%emt 00:00:07]} Bd8 {[%clk 00:03:50]} {[%emt 00:00:38]} 56. Ng3 {[%clk
00:05:28]} {[%emt 00:00:21]} Rh7 {[%clk 00:03:20]} {[%emt 00:01:00]} 57. Ra1
{[%clk 00:05:43]} {[%emt 00:00:15]} Kb7 {[%clk 00:03:37]} {[%emt 00:00:13]} 58.
Be2 {[%clk 00:05:52]} {[%emt 00:00:21]} Rg7 {[%clk 00:03:30]} {[%emt 00:00:37]}
59. Kg2 {[%clk 00:06:01]} {[%emt 00:00:22]} Be7 {[%clk 00:03:59]} 60. Kh3
{[%clk 00:06:23]} {[%emt 00:00:08]} Bf8 {[%clk 00:01:38]} {[%emt 00:02:50]} 61.
Kg4 {[%clk 00:06:51]} {[%emt 00:00:02]} Rd7 {[%clk 00:01:49]} {[%emt 00:00:19]}
62. Nh1 {[%clk 00:07:08]} {[%emt 00:00:14]} Bg7 {[%clk 00:01:57]} {[%emt
00:00:23]} 63. Nf2 {[%clk 00:07:33]} {[%emt 00:00:05]} Nc7 {[%clk 00:01:34]}
{[%emt 00:00:53]} 64. Nh1 {[%clk 00:07:42]} {[%emt 00:00:21]} Rd8 {[%clk
00:01:55]} {[%emt 00:00:09]} 65. Bd2 {[%clk 00:07:52]} {[%emt 00:00:20]} Nd7
{[%clk 00:02:17]} {[%emt 00:00:07]} 66. Ng3 {[%clk 00:08:03]} {[%emt 00:00:19]}
Bf8 {[%clk 00:02:08]} {[%emt 00:00:40]} 67. Be3 {[%clk 00:08:22]} {[%emt
00:00:11]} Bg7 {[%clk 00:02:35]} {[%emt 00:00:03]} 68. Bd2 {[%clk 00:08:44]}
{[%emt 00:00:08]} Bf8 {[%clk 00:03:04]} 69. Be3 {[%clk 00:09:01]} {[%emt
00:00:14]} Bg7 {[%clk 00:03:13]} {[%emt 00:00:21]} 70. Bd2 {[%emt 00:01:33]}
Bf8 71. Be3 1/2-1/2

[Event "9e Open International de Porticcio"]
[Site "Porticcio, France"]
[Date "2024.07.02"]
[Round "6.4"]
[White "Bulmaga, Irina"]
[Black "Rakotomaharo, Fy Antenaina"]
[Result "1-0"]
[TimeControl "1h30+30s/move"]
[WhiteElo "2391"]
[BlackElo "2448"]

1. e4 {[%clk 01:30:57]} {[%emt 00:00:01]} g6 {[%clk 01:26:45]} {[%emt
00:04:16]} 2. d4 {[%clk 01:31:14]} {[%emt 00:00:12]} Bg7 {[%clk 01:27:13]}
{[%emt 00:00:04]} 3. Nc3 {[%clk 01:31:23]} {[%emt 00:00:20]} d6 {[%clk
01:27:35]} {[%emt 00:00:08]} 4. Nf3 {[%clk 01:31:33]} {[%emt 00:00:20]} Nf6
{[%clk 01:26:40]} {[%emt 00:01:24]} 5. Be2 {[%clk 01:31:11]} {[%emt 00:00:52]}
a6 {[%clk 01:26:08]} {[%emt 00:01:03]} 6. O-O {[%clk 01:29:47]} {[%emt
00:01:54]} O-O {[%clk 01:26:32]} {[%emt 00:00:06]} 7. a4 {[%clk 01:29:55]}
{[%emt 00:00:22]} Nc6 {[%clk 01:26:39]} {[%emt 00:00:23]} 8. h3 {[%clk
01:27:15]} {[%emt 00:03:10]} e5 {[%clk 01:23:57]} {[%emt 00:03:12]} 9. dxe5
{[%clk 01:25:13]} {[%emt 00:02:32]} dxe5 {[%clk 01:15:13]} {[%emt 00:09:13]} 10.
Bc4 {[%clk 01:18:29]} {[%emt 00:07:14]} Qe7 {[%clk 01:04:06]} {[%emt 00:11:37]}
11. Nd5 {[%clk 01:03:38]} {[%emt 00:15:20]} Nxd5 {[%clk 01:03:26]} {[%emt
00:01:10]} 12. Bxd5 {[%clk 01:01:48]} {[%emt 00:02:21]} Rd8 {[%clk 00:43:11]}
{[%emt 00:20:45]} 13. Bg5 {[%clk 00:53:20]} {[%emt 00:08:58]} Bf6 {[%clk
00:43:25]} {[%emt 00:00:15]} 14. Bxf6 {[%clk 00:52:54]} {[%emt 00:00:57]} Qxf6
{[%clk 00:43:47]} {[%emt 00:00:07]} 15. Qe2 {[%clk 00:50:03]} {[%emt 00:03:21]}
Ne7 {[%clk 00:28:33]} {[%emt 00:15:44]} 16. Rad1 {[%clk 00:46:48]} {[%emt
00:03:44]} Kg7 {[%clk 00:28:51]} {[%emt 00:00:11]} 17. Qe3 {[%clk 00:43:05]}
{[%emt 00:04:14]} Nxd5 {[%clk 00:18:19]} {[%emt 00:11:02]} 18. exd5 {[%clk
00:41:06]} {[%emt 00:02:28]} Re8 {[%clk 00:12:59]} {[%emt 00:05:50]} 19. Rfe1
{[%clk 00:38:03]} {[%emt 00:03:34]} e4 {[%clk 00:12:35]} {[%emt 00:00:54]} 20.
Nd2 {[%clk 00:30:33]} {[%emt 00:08:00]} Qxb2 {[%clk 00:04:22]} {[%emt
00:08:44]} 21. Qc5 {[%clk 00:29:28]} {[%emt 00:01:34]} Bf5 {[%clk 00:01:03]}
{[%emt 00:03:49]} 22. Rb1 {[%clk 00:26:32]} {[%emt 00:03:26]} Qe5 {[%clk
00:01:19]} {[%emt 00:00:14]} 23. Rxb7 {[%clk 00:25:18]} {[%emt 00:01:45]} c6
{[%clk 00:00:53]} {[%emt 00:00:56]} 24. g4 {[%clk 00:17:48]} {[%emt 00:07:59]}
Be6 {[%clk 00:01:16]} {[%emt 00:00:07]} 25. Rxe4 {[%clk 00:14:56]} {[%emt
00:03:23]} Qxd5 {[%clk 00:01:32]} {[%emt 00:00:14]} 26. Qc3+ {[%clk 00:15:02]}
{[%emt 00:00:23]} Kg8 {[%clk 00:01:18]} {[%emt 00:00:44]} 27. Re5 {[%clk
00:15:02]} {[%emt 00:00:30]} Qd8 {[%clk 00:00:42]} {[%emt 00:01:06]} 28. Ne4
{[%clk 00:14:09]} {[%emt 00:01:23]} Qh4 {[%clk 00:00:32]} {[%emt 00:00:40]} 29.
Rh5 {[%clk 00:09:09]} {[%emt 00:05:29]} gxh5 {[%clk 00:00:40]} {[%emt
00:00:23]} 30. Nf6+ {[%clk 00:09:37]} {[%emt 00:00:01]} Qxf6 {[%clk 00:00:32]}
{[%emt 00:00:39]} 31. Qxf6 {[%clk 00:09:58]} {[%emt 00:00:09]} hxg4 {[%clk
00:00:33]} {[%emt 00:00:29]} 32. hxg4 {[%clk 00:10:10]} {[%emt 00:00:18]} Rad8
{[%clk 00:00:32]} {[%emt 00:00:31]} 33. Rb1 {[%clk 00:09:57]} {[%emt 00:00:44]}
Rd5 {[%clk 00:00:31]} {[%emt 00:00:31]} 34. Re1 {[%clk 00:09:37]} {[%emt
00:00:48]} Red8 {[%clk 00:00:55]} {[%emt 00:00:06]} 35. Kh2 {[%clk 00:08:49]}
{[%emt 00:01:18]} a5 {[%clk 00:00:33]} {[%emt 00:00:53]} 36. Kg3 {[%clk
00:07:17]} {[%emt 00:02:02]} Rb8 {[%clk 00:00:32]} {[%emt 00:00:32]} 37. f4
{[%clk 00:07:01]} {[%emt 00:00:46]} Rd7 {[%clk 00:00:32]} {[%emt 00:00:30]} 38.
Qg5+ {[%clk 00:06:40]} {[%emt 00:00:51]} Kf8 {[%clk 00:00:56]} {[%emt
00:00:06]} 39. Qh6+ {[%clk 00:07:02]} {[%emt 00:00:08]} 1-0

[Event "9e Open International de Porticcio"]
[Site "Porticcio, France"]
[Date "2024.07.02"]
[Round "6.5"]
[White "Druska, Juraj"]
[Black "Nayak Rajesh"]
[Result "1/2-1/2"]
[TimeControl "1h30+30s/move"]
[WhiteElo "2466"]
[BlackElo "2185"]

1. Nf3 {[%clk 01:24:59]} {[%emt 00:06:00]} Nf6 {[%clk 01:30:32]} {[%emt
00:00:27]} 2. g3 {[%clk 01:25:00]} {[%emt 00:00:30]} e6 {[%clk 01:30:21]}
{[%emt 00:00:40]} 3. Bg2 {[%clk 01:25:08]} {[%emt 00:00:22]} d5 {[%clk
01:30:40]} {[%emt 00:00:11]} 4. O-O {[%clk 01:25:24]} {[%emt 00:00:14]} Be7
{[%clk 01:28:17]} {[%emt 00:02:54]} 5. c4 {[%clk 01:25:40]} {[%emt 00:00:14]}
O-O {[%clk 01:28:34]} {[%emt 00:00:12]} 6. d4 {[%clk 01:25:46]} {[%emt
00:00:25]} dxc4 {[%clk 01:28:51]} {[%emt 00:00:13]} 7. Qc2 {[%clk 01:25:57]}
{[%emt 00:00:18]} b5 {[%clk 01:29:11]} {[%emt 00:00:10]} 8. a4 {[%clk
01:25:19]} {[%emt 00:01:08]} Bb7 {[%clk 01:25:11]} {[%emt 00:04:30]} 9. axb5
{[%clk 01:25:09]} {[%emt 00:00:41]} a6 {[%clk 01:25:27]} {[%emt 00:00:14]} 10.
bxa6 {[%clk 01:10:41]} {[%emt 00:14:59]} Nxa6 {[%clk 01:25:42]} {[%emt
00:00:15]} 11. Qxc4 {[%clk 01:01:17]} {[%emt 00:09:54]} Bd5 {[%clk 01:25:47]}
{[%emt 00:00:25]} 12. Qc3 {[%clk 01:00:51]} {[%emt 00:00:57]} c5 {[%clk
01:09:02]} {[%emt 00:17:15]} 13. Be3 {[%clk 00:44:12]} {[%emt 00:17:09]} Ng4
{[%clk 01:07:28]} {[%emt 00:02:04]} 14. Bf4 {[%clk 00:44:06]} {[%emt 00:00:36]}
cxd4 {[%clk 01:04:03]} {[%emt 00:03:55]} 15. Qxd4 {[%clk 00:42:52]} {[%emt
00:01:44]} Bc5 {[%clk 01:03:47]} {[%emt 00:00:46]} 16. Qc3 {[%clk 00:39:57]}
{[%emt 00:03:25]} Qb6 {[%clk 00:54:37]} {[%emt 00:09:40]} 17. e3 {[%clk
00:31:14]} {[%emt 00:09:14]} Qb7 {[%clk 00:39:46]} {[%emt 00:15:21]} 18. Ne1
{[%clk 00:19:31]} {[%emt 00:12:12]} Bxg2 {[%clk 00:37:11]} {[%emt 00:03:05]} 19.
Nxg2 {[%clk 00:19:56]} {[%emt 00:00:06]} Rfc8 {[%clk 00:36:35]} {[%emt
00:01:05]} 20. Qd2 {[%clk 00:16:28]} {[%emt 00:03:58]} e5 {[%clk 00:36:41]}
{[%emt 00:00:23]} 21. h3 {[%emt 00:13:30]} exf4 {[%emt 00:01:01]} 22. hxg4
{[%clk 00:16:34]} {[%emt 00:00:02]} fxg3 {[%clk 00:23:23]} {[%emt 00:00:40]} 23.
fxg3 {[%clk 00:16:58]} {[%emt 00:00:06]} Rd8 {[%clk 00:23:44]} {[%emt
00:00:10]} 24. Qe2 {[%clk 00:14:59]} {[%emt 00:02:30]} Nc7 {[%clk 00:22:45]}
{[%emt 00:01:28]} 25. Rxa8 {[%clk 00:13:26]} {[%emt 00:02:03]} Rxa8 {[%clk
00:23:07]} {[%emt 00:00:08]} 26. Nc3 {[%clk 00:13:42]} {[%emt 00:00:14]} Ne6
{[%clk 00:22:54]} {[%emt 00:00:42]} 27. Qf3 {[%clk 00:12:55]} {[%emt 00:01:18]}
Qxf3 {[%clk 00:22:58]} {[%emt 00:00:27]} 28. Rxf3 {[%clk 00:13:24]} Rb8 {[%clk
00:23:20]} {[%emt 00:00:07]} 29. Rf2 {[%clk 00:11:03]} {[%emt 00:02:52]} Rb4
{[%clk 00:23:31]} {[%emt 00:00:17]} 30. Rc2 {[%clk 00:11:16]} {[%emt 00:00:18]}
Rxg4 {[%clk 00:23:28]} {[%emt 00:00:33]} 31. Kf2 {[%clk 00:11:36]} {[%emt
00:00:10]} g5 {[%clk 00:22:37]} {[%emt 00:01:21]} 32. Nd5 {[%clk 00:09:56]}
{[%emt 00:02:10]} Kg7 {[%clk 00:22:49]} {[%emt 00:00:17]} 33. Nc7 {[%clk
00:08:41]} {[%emt 00:01:45]} Be7 {[%clk 00:17:46]} {[%emt 00:05:31]} 34. Nxe6+
{[%clk 00:08:29]} {[%emt 00:00:44]} fxe6 {[%clk 00:18:09]} {[%emt 00:00:07]} 35.
Kf3 {[%clk 00:05:42]} {[%emt 00:03:18]} h5 {[%clk 00:17:46]} {[%emt 00:00:52]}
36. Ne1 {[%clk 00:06:02]} {[%emt 00:00:11]} Bd6 {[%clk 00:17:41]} {[%emt
00:00:35]} 37. Rg2 {[%clk 00:06:30]} {[%emt 00:00:01]} Rb4 {[%clk 00:17:29]}
{[%emt 00:00:39]} 38. Rd2 {[%clk 00:06:23]} {[%emt 00:00:40]} Bb8 {[%clk
00:17:16]} {[%emt 00:00:42]} 39. Nd3 {[%clk 00:06:24]} {[%emt 00:00:30]} Rg4
{[%clk 00:17:07]} {[%emt 00:00:38]} 40. Rg2 {[%clk 00:06:31]} {[%emt 00:00:24]}
Rc4 {[%clk 00:17:21]} {[%emt 00:00:14]} 41. Rd2 {[%clk 00:06:46]} {[%emt
00:00:17]} Rg4 {[%clk 00:17:41]} {[%emt 00:00:09]} 42. Rg2 {[%clk 00:07:13]}
{[%emt 00:00:04]} Rc4 {[%clk 00:18:04]} {[%emt 00:00:07]} 43. Rd2 {[%clk
00:06:53]} {[%emt 00:00:50]} Rg4 {[%clk 00:18:27]} {[%emt 00:00:06]} 44. Ke4
{[%emt 00:01:32]} 1/2-1/2